Cogmind - Beta 11.1 *** ADVENTURER MODE // 2022.05.29 @ 05:17:38 Player: Olexender Result: Destroyed by as-19058 with Assembled Rifle Performance ------------- Evolutions (0) 0 Regions Visited (2) 400 Robots Destroyed (31) 155 Value Destroyed (636) 636 Prototype IDs (2) 40 Alien Tech Used (0) 0 Bonus (0) 0 TOTAL SCORE: 1231 Bonus ------- None Cogmind --------- Core Integrity 0/250 Matter 300/300 Energy 160/160 System Corruption 0% Temperature Cool (0) Movement Core (200) Ox3 Location -10/Mines Parts ------- > --- POWER (1) -------- Light Nuclear Core > --- PROPULSION (2) --- (None) > --- UTILITY (2) ------ Small Storage Unit ECM Suite > --- WEAPON (2) ------- (None) > --- INVENTORY (8) ---- Hover Unit Improved Targeting Computer Improved Targeting Computer Improved Targeting Computer Improved Targeting Computer Propulsion Shielding Utility Shielding Mini Grenade Launcher Peak State ------------ > --- POWER ------------ Light Nuclear Core > --- PROPULSION ------- Hover Unit Hover Unit > --- UTILITY ---------- Small Storage Unit Seismic Detector > --- WEAPON ----------- EM Shotgun Light Assault Rifle > --- INVENTORY -------- Hover Unit Improved Targeting Computer Improved Targeting Computer Improved Targeting Computer Improved Targeting Computer ECM Suite EM Pulse Gun EM Shotgun [Rating: 11] Favorites ----------- Power Light Nuclear Core Engine Ion Engine Power Core Light Nuclear Core Propulsion Hover Unit Wheel Compact Wheel Hover Unit Hover Unit Utility Small Storage Unit Device Seismic Detector Storage Small Storage Unit Weapon Light Assault Rifle Energy Gun EM Pulse Gun Ballistic Gun Light Assault Rifle Build | -11 -10 -10 ------- Run | Scr Mat Min Slots Evolved . | . . . Power . | . . . Propulsion . | . . . Utility . | . . . Weapon . | . . . Parts Attached 28 | 6 20 2 Power 5 | 1 4 . Engine 2 | 1 1 . Core 3 | . 3 . Reactor . | . . . Propulsion 10 | 2 8 . Treads . | . . . Leg . | . . . Wheel 5 | 2 3 . Hover 5 | . 5 . Flight . | . . . Utility 4 | 1 3 . Device 3 | . 3 . Storage 1 | 1 . . Processor . | . . . Hackware . | . . . Protection . | . . . Artifact . | . . . Weapon 9 | 2 5 2 Energy Gun 5 | 2 2 1 Energy Cannon . | . . . Ballistic Gun 4 | . 3 1 Ballistic Cannon . | . . . Launcher . | . . . Special Weapon . | . . . Impact Weapon . | . . . Slashing Weapon . | . . . Piercing Weapon . | . . . Special Melee Weapon . | . . . Unidentified Prototypes . | . . . Parts Lost 9 | . 4 5 Power 1 | . 1 . Propulsion 3 | . 1 2 Utility 1 | . 1 . Weapon 4 | . 1 3 Highest Loss Streak 5 | . 4 5 To Critical Strikes . | . . . Average Slot Usage (%) 97 | . 97 96 Engine 2 | . 3 . Core 11 | . 10 14 Wheel 5 | . 7 . Hover 22 | . 20 26 Device 13 | . 12 14 Storage 14 | . 14 14 Energy Gun 16 | . 16 13 Ballistic Gun 10 | . 10 12 Naked Turns . | . . . Heaviest Build 16 | 14 16 16 Greatest Support 32 | 32 32 12 Greatest Overweight (x) 4 | 1 2 4 Average Overweight (x) . | . . 1 Largest Inventory Capacity 8 | 8 8 8 Average Capacity 7 | 7 8 8 Most Carried 8 | 5 8 8 Average Carried 6 | 2 6 7 Final Capacity 8 | 8 8 8 Final Carried 8 | 4 8 8 Class Distribution -------------------- 61% | Mutant 38% | Scavenger-Mutant Dominant Class ---------------- Scavenger-Mutant | -10/Materials Mutant | -10/Mines Resources | -11 -10 -10 ----------- Run | Scr Mat Min Matter Collected 492 | 260 153 79 Remotely . | . . . Salvage Created 1066 | 159 669 238 Parts 58 | 10 30 18 Haulers Intercepted 2 | . 2 . Recyclers Shooed . | . . . Parts Field Recycled . | . . . Retrieved Matter . | . . . Parts Self-Destructed . | . . . Prevented . | . . . Kills | -11 -10 -10 ------- Run | Scr Mat Min Combat Hostiles Destroyed 23 | . 12 11 Guns 19 | . 12 7 AOE 4 | . . 4 Classes Destroyed 9 | 2 5 2 Worker 1 | . 1 . Tunneler 3 | 3 . . Hauler 2 | . 2 . Recycler 1 | 1 . . Watcher 3 | . 3 . Swarmer 9 | . 3 6 Grunt 11 | . 9 2 Demolisher 1 | . . 1 Assembled 2 | . . 2 Best Kill Streak 4 | 4 3 3 Combat Bots Only 3 | . 3 3 Max Kills in Single Turn 3 | 1 1 3 Gunslinging . | . . . Exploded 3 | . . 3 Melee . | . . . Uniques/NPCs Destroyed . | . . . Combat | -11 -10 -10 -------- Run | Scr Mat Min Damage Taken 866 | . 464 402 Core 257 | . 133 124 Absorbed by Shields . | . . . Core Remaining (%) 100 | 100 . . Volleys Fired 82 | 8 57 17 Largest 2 | 2 2 2 Hottest 90 | 90 90 65 Shots Fired 144 | 16 102 26 Gun 144 | 16 102 26 Cannon . | . . . Launcher . | . . . Special . | . . . Kinetic 27 | . 18 9 Thermal 35 | 8 27 . Explosive . | . . . Electromagnetic 82 | 8 57 17 Robot Hit Streak 15 | 5 13 15 Robot Miss Streak 3 | 1 3 1 Penetration Max . | . . . Secondary Targets 3 | . 2 1 Max Gunslinging Chain 1 | . 1 1 Shots Hit Robots 108 | 11 77 20 Core Hits 54 | 4 32 18 Critical Kills . | . . . Critical Parts Destroyed . | . . . Critical Strikes 3 | 1 2 . Burn 2 | 1 1 . Corrupt 1 | . 1 . Melee Attacks . | . . . Impact . | . . . Slashing . | . . . Piercing . | . . . Sneak Attacks . | . . . Combat Hostiles . | . . . Follow-up Attacks . | . . . Damage Inflicted 1687 | 143 1168 376 Guns 1413 | 143 1016 254 Cannons . | . . . Explosions 274 | . 152 122 Melee . | . . . Ramming . | . . . Kinetic 125 | . 109 16 Thermal 676 | 88 466 122 Explosive . | . . . Electromagnetic 886 | 55 593 238 Impact . | . . . Slashing . | . . . Piercing . | . . . Highest Corruption . | . . . Average Corruption . | . . . Corruption Purged . | . . . Corruption Blocked . | . . . Overload Shots . | . . . Overflow Damage 8 | . 8 . Projectiles . | . . . Explosions 8 | . 8 . Melee . | . . . Knockbacks . | . . . Impact . | . . . Kinetic . | . . . Secondary . | . . . Self-Inflicted Damage . | . . . Shots . | . . . Rammed . | . . . Targets Rammed . | . . . Kicked . | . . . Crushed . | . . . Highest Temperature 401 | 100 401 107 Average Temperature 105 | 43 132 33 Received Heat Transfer 345 | . 318 27 Effects 6 | . 6 . Shutdowns 1 | . 1 . Energy Bleed 4 | . 4 . Damage (minor) 1 | . 1 . Siege Activations . | . . . Robots Corrupted . | . . . Combat Hostiles . | . . . Parts Fried 6 | . 6 . Impact Corruptions . | . . . Robots Melted . | . . . Combat Hostiles . | . . . Parts Melted 6 | 2 4 . Heat Transferred 1582 | 333 1149 100 Parts Sabotaged . | . . . Parts Stolen . | . . . Parts Stripped . | . . . Power Chain Reactions 4 | . 2 2 Missiles Intercepted . | . . . Alert | -11 -10 -10 ------- Run | Scr Mat Min Peak Influence 275 | 20 275 217 Initial 11 | . 11 3 Average 91 | 6 93 105 Maximum Alert Level 1 | . 1 1 Low Security (%) 90 | 100 89 90 Level 1 9 | . 10 9 Level 2 . | . . . Level 3 . | . . . Level 4 . | . . . Level 5 . | . . . High Security . | . . . Max Security . | . . . Squads Dispatched 3 | . 3 . Investigation 3 | . 3 . Extermination . | . . . Reinforcement . | . . . Assault . | . . . Garrison . | . . . Intercept . | . . . Searches Triggered . | . . . Construction Impeded . | . . . Haulers Reinforced . | . . . Active Scanning Responses . | . . . Cargo Convoy Interrupts . | . . . Stealth | -11 -10 -10 --------- Run | Scr Mat Min Distress Signals 4 | . 3 1 Communications Jammed . | . . . Distress Signals . | . . . Times Spotted 41 | . 19 22 Peak Tracking Total 6 | . 5 6 Tactical Retreats 5 | . 3 2 Traps | -11 -10 -10 ------- Run | Scr Mat Min Traps Triggered 5 | . 5 . Indirectly . | . . . Trap Hack Attempts . | . . . Triggered . | . . . Disarmed . | . . . Reprogrammed 1 | . 1 . Reused . | . . . Traps Extracted . | . . . Installed . | . . . Triggered 1 | . 1 . Machines | -11 -10 -10 ---------- Run | Scr Mat Min Machines Disabled . | . . . Max in Single Turn . | . . . Machines Sabotaged . | . . . Garrisons Compromised . | . . . Overloaded Fab Kills . | . . . Hacking | -11 -10 -10 --------- Run | Scr Mat Min Machines Accessed 10 | . 10 . Terminals 8 | . 8 . Fabricators . | . . . Repair Stations . | . . . Recycling Units 2 | . 2 . Scanalyzers . | . . . Garrison Access . | . . . Total Hacks 37 | . 37 . Successful 25 | . 25 . Failed 12 | . 12 . Catastrophic 1 | . 1 . Database Lockouts . | . . . Manual . | . . . Terminals 33 | . 33 . Fabricators . | . . . Repair Stations . | . . . Recycling Units 4 | . 4 . Scanalyzers . | . . . Garrison Access . | . . . Terminal Hacks 22 | . 22 . Record 5 | . 5 . Prototype ID Bank 1 | . 1 . Level Access Points 1 | . 1 . Branch Access Points 1 | . 1 . Alert Level 1 | . 1 . Unreport Threat 1 | . 1 . Reprogram Traps 1 | . 1 . Dispatch Records 2 | . 2 . Transport Status 2 | . 2 . Hauler Manifests 2 | . 2 . Registered Components 1 | . 1 . Zone Layout 4 | . 4 . Fabricator Hacks . | . . . Repair Station Hacks . | . . . Recycling Unit Hacks 3 | . 3 . Report Inventory 2 | . 2 . Retrieve Components 1 | . 1 . Scanalyzer . | . . . Garrison Access Hacks . | . . . Unauthorized Hacks . | . . . Terminals . | . . . Fabricators . | . . . Repair Stations . | . . . Recycling Units . | . . . Scanalyzers . | . . . Garrison Access . | . . . Data Cores Recovered . | . . . Used . | . . . Hacking Detections 6 | . 6 . Full Trace Events 1 | . 1 . Feedback Events . | . . . Feedback Blocked . | . . . Robot Schematics Acquired . | . . . Robots Built . | . . . Authchips . | . . . Time . | . . . Total Robot Build Rating . | . . . Part Schematics Acquired . | . . . Parts Built . | . . . Authchips . | . . . Time . | . . . Total Part Build Rating . | . . . Parts Repaired . | . . . Time . | . . . Parts Recycled . | . . . Recycled Matter . | . . . Retrieved Matter . | . . . Retrieved Components 10 | . 10 . Parts Scanalyzed . | . . . Part Schematics Acquired . | . . . Parts Damaged . | . . . Bothacking | -11 -10 -10 ------------ Run | Scr Mat Min Used RIF Installer . | . . . Robots Hacked . | . . . Non-combat . | . . . Combat . | . . . Robot Hacks Applied . | . . . Relay Couplers Released . | . . . Fabnet Peak Effective % . | . . . Robots Rewired . | . . . Allies Hacked . | . . . Hacks Repelled . | . . . Allies | -11 -10 -10 -------- Run | Scr Mat Min Total Allies . | . . . Largest Group . | . . . Highest-Rated Group . | . . . Highest-Rated Ally . | . . . Total Orders . | . . . Ally Attacks . | . . . Total Damage . | . . . Kills . | . . . Allies Corrupted . | . . . Allies Melted . | . . . Intel | -11 -10 -10 ------- Run | Scr Mat Min Robot Analysis Total . | . . . Derelict Logs Recovered . | . . . Drone Launches . | . . . Drone Recoveries . | . . . Exploration | -11 -10 -10 ------------- Run | Scr Mat Min Turns Passed 1508 | 87 1035 386 Spaces Moved 993 | 53 663 277 Core 19 | 15 2 2 Treads . | . . . Legs . | . . . Wheels 191 | 38 153 . Hover 783 | . 508 275 Flight . | . . . Fastest Speed 50 | 50 56 116 Average Speed 112 | 91 112 117 Slowest Speed 250 | 100 150 250 Overloaded Moves . | . . . Propulsion Burnouts . | . . . Robots Hopped . | . . . Cave-ins Triggered . | . . . Exploration Rate (%) 52 | 3 90 64 Regions Visited 2 Branch Regions 1 Pre-discovered Areas . | . . . Known Exits Taken 1 | . 1 . Unknown Exits Taken 1 | 1 . . Scrap Searched . | . . . Spaces Dug . | . . . Terrain Destroyed 14 | . 11 3 Melee . | . . . Projectile . | . . . AOE 14 | . 11 3 Terrain Rammed . | . . . Walls Destroyed . | . . . Machines Disabled . | . . . Actions | -11 -10 -10 --------- Run | Scr Mat Min Total 1241 | 75 853 313 Wait 100 | . 89 11 Move 991 | 52 662 277 Hop . | . . . Pick Up 29 | 9 17 3 Fast Attach 8 | 1 7 . Attach 11 | 5 5 1 Detach . | . . . Swap 9 | . 8 1 Drop 11 | . 8 3 Fire 82 | 8 57 17 Melee . | . . . Ram . | . . . Kick . | . . . Crush . | . . . Escape Stasis . | . . . Rewire . | . . . Trap . | . . . Miscellaneous . | . . . Route ------- -11/Scrapyard -10/Materials (discovered 5 exits: *Mat x3 / *Min x2) -10/Mines (discovered 1 exit: *Mat) History --------- Turn | Location | Event 27 | -11/Scrapyard | Discovered new exit (range 15) 88 | -11/Scrapyard | Entered Materials 104 | -10/Materials | Discovered new exit (range 13) 190 | -10/Materials | Discovered new exit (range 16) 308 | -10/Materials | Build established: Mutant 345 | -10/Materials | Lost 4 parts (1p1n1u1w) 405 | -10/Materials | Discovered new exit (range 13) 572 | -10/Materials | Core integrity fell below 50% 619 | -10/Materials | Discovered new exit (range 16) 647 | -10/Materials | Build established: Scavenger-Mutant 800 | -10/Materials | Discovered new exit (range 16) 889 | -10/Materials | Identified exit to Materials 889 | -10/Materials | Identified exit to Mines 1123 | -10/Materials | Entered Mines 1254 | -10/Mines | Build established: Mutant 1354 | -10/Mines | Discovered exit to Materials (range 9) 1461 | -10/Mines | Assembled infested the area 1479 | -10/Mines | Core integrity fell below 20% 1509 | -10/Mines | Destroyed by as-19058 with Assembled Rifle Last Messages --------------- 01484_ The unstable cave ceiling collapses. 01487_ D-53 Grenadier destroyed. 01487_ Chain reaction triggered in Lgt. Deuterium Engine. 01487_ D-53 Grenadier destroyed. 01489_ T-07 Excavator destroyed. 01489_ K-01 Serf collects debris. 01491_ The unstable cave ceiling collapses. 01492_ K-01 Serf collects debris. 01494_ Hover Unit destroyed. 01496_ K-01 Serf collects debris. 01497_ The unstable cave ceiling collapses. 01497_ as-28628 destroyed. 01498_ The unstable cave ceiling collapses. 01499_ Destroyed Asb. Hover Unit. 01500_ K-01 Serf collects debris. 01503_ as-73696 destroyed. 01504_ K-01 Serf collects debris. 01507_ EM Shotgun destroyed. 01508_ K-01 Serf collects debris. 01508_ Acquired Mni. Grenade Launcher. Map ----- +----------------------------------------------------+ | ???### #??????#[## """ #?????????# ### | | #### #??????#%## """ #??????????????## | | # ##?????#!## #???????????????# | | ##????# ## #???????????????# | | ###### ########???????????????# | | ## !#??????????????????????# | | ##### ######%#??????????????????????## # | | ????#### ##????#[#???????????????????????## ##? | | ???????# ##?????# #????????????????????????# ??? | | ???????# #????### ###??????????????????????# ??? | | ???????# #???## ##?????????????????????# ???? | | ???????# #???# ##????????????????????#????? | | ???????# ##### ##????????????????????????? | | ???????# ## = =% ### #????????????????????? | | ???????# ## [% % #????????????????????? | | ??????## ## ##"" * ##???????????????????????? | | ??????# ####" ####????????????????????????? | | ??????# #??## #???????????????????????????? | | ??????# ####???# ##?????#????????????????????? | | ??????## #????### ###?? #?##?????????????????? | | ???????# ???## #?? ## ##????????????????? | | ???????## ???# ###%# ###??????????????? | | ????????## ## # a ###????????????? | | ?????????## a #????????????? | | ??????????# # ????????????? | | ??????????## """ # @# # ????????????? | | ???????????## """ k =% #??????????????????? | | ????????????# """| ] #??????????????????? | | ???????????# !%= # #??????????????????? | | ???????? ## # # #?????????????????? | | ????????# #?# % ????????????????? | | ????????## ## #??# # %a #??????????????? | | ????????????# ???# ### a " #??????????????? | | ????????????# ???? ??# " #??????????????? | | ????????????# ???###??## #??????????????? | | #???????????????????????# # T#???????????????? | | #????????????????????????a#### ###???????????????? | | #????????????????????????